bitfinex/quotes_SOLUSD_20251018
["timestamp","ask_amount","ask_price","bid_price","bid_amount"]
[1760763876343,0.71,184.12,184.08,0.7]
[1760763876542,1.46698406,184.1,184.08,0.7]
[1760763877162,1.46698406,184.11,184.09,0.7]
[1760763877656,1.46698406,184.11,184.07,16.3394243]
[1760763877844,1.46698406,184.11,184.09,0.7]
[1760763879255,1.46698406,184.11,184.07,16.3394243]
[1760763879468,2.13698406,184.11,184.07,17.0294243]
[1760763879657,1.46698406,184.1,184.07,17.0294243]
[1760763879862,1.46698406,184.1,184.07,16.3394243]
[1760763880380,1.46698406,184.1,184.07,17.0294243]
[1760763880749,1.46698406,184.1,184.08,0.69]
[1760763880948,0.2,184.14,184.09,0.69]
[1760763881270,1.46698406,184.13,184.09,0.69]
[1760763881464,1.46698406,184.13,184.1,16.33675497]
[1760763881683,1.46698406,184.13,184.11,0.69]
[1760763882349,1.46698406,184.13,184.12,2.17823399]
[1760763882549,0.2,184.14,184.12,2.17823399]
[1760763882766,1.66698406,184.14,184.12,2.17823399]
[1760763882962,0.67,184.13,184.12,2.17823399]
[1760763883167,0.67,184.13,184.08,0.69]
[1760763883368,2.13698406,184.12,184.11,2.17835262]
[1760763883657,2.13698406,184.12,184.08,0.69]
[1760763883855,2.13698406,184.12,184.04,50.28]
[1760763883856,2.13698406,184.12,184.09,2.86835262]
[1760763885275,1.46698406,184.12,184.09,2.86835262]
[1760763885575,2.13698406,184.12,184.09,2.86835262]
[1760763885869,1.46698406,184.12,184.09,2.86835262]
[1760763886072,1.46698406,184.12,184.09,47.46835262]
[1760763886457,1.46698406,184.12,184.1,0.69]
[1760763888360,1.66698406,184.14,184.11,0.69]
[1760763888758,0.2,184.14,184.11,47.46799678]
[1760763889079,0.2,184.14,184.12,0.69]
[1760763890369,0.2,184.14,184.12,6.12104436]
[1760763890572,0.2,184.14,184.13,0.69]
[1760763891566,0.2,184.14,184.13,17.02408651]
[1760763892265,0.2,184.14,184.13,22.45503203]
[1760763892467,0.2,184.14,184.13,67.05503203]
[1760763903184,0.2,184.14,184.13,66.36503203]
[1760763903964,0.2,184.14,184.13,67.06503203]
[1760763908076,0.2,184.14,184.13,94.46503203]
[1760763908288,0.2,184.14,184.13,94.74935517]
[1760763911505,0.2,184.22,184.15,22.88]
[1760763911672,0.2,184.22,184.16,0.7]
[1760763911990,0.2,184.22,184.16,28.1]
[1760763911991,0.71,184.21,184.16,28.1]
[1760763912193,0.2,184.22,184.15,67.47999999]
[1760763912194,0.2,184.22,184.18,5.42947116]
[1760763912501,0.71,184.2,184.18,5.42947116]
[1760763912971,1.66698406,184.22,184.18,5.42947116]
[1760763913171,0.2,184.22,184.18,5.42947116]
[1760763913402,0.71,184.21,184.19,2.17716696]
[1760763913577,0.71,184.2,184.19,2.17716696]
[1760763914282,2.37698406,184.22,184.19,7.6063071]
[1760763914680,2.37698406,184.22,184.19,5.42914014]
[1760763914877,2.37698406,184.22,184.2,2.37698406]
[1760763915693,0.2,184.22,184.2,2.37698406]
[1760763915892,0.91,184.22,184.2,2.37698406]
[1760763916074,0.2,184.22,184.2,7.80583679]
[1760763916579,0.2,184.22,184.2,5.42885273]
[1760763916888,0.91,184.22,184.21,2.17698406]
[1760763917497,0.2,184.22,184.21,2.17698406]
[1760763918299,0.91,184.22,184.21,2.17698406]
[1760763919204,0.91,184.22,184.21,46.77698405]
[1760763919697,3.19952962,184.22,184.21,46.77698405]
[1760763920000,3.19952962,184.22,184.21,44.59999999]
[1760763920877,0.2,184.22,184.21,44.59999999]
[1760763921292,0.2,184.22,184.21,60.92697487]
[1760763921696,0.48432314,184.27,184.25,5.42740841]
[1760763921697,0.2,184.27,184.25,5.42740841]
[1760763922195,0.2,184.27,184.26,0.7]
[1760763922505,0.2,184.27,184.26,2.98952962]
[1760763923692,0.2,184.27,184.26,8.41664348]
[1760763924202,0.2,184.27,184.26,8.70096662]
[1760763925098,2.99952962,184.36,184.26,22.26875127]
[1760763925281,0.71,184.36,184.27,0.98432314]
[1760763925480,2.28952962,184.37,184.28,0.7]
[1760763925679,0.71,184.35,184.28,0.7]
[1760763926208,0.91,184.33,184.29,2.98952962]
[1760763926505,0.77787418,184.4,184.33,22.88]
[1760763926506,0.1,184.4,184.33,22.88]
[1760763926720,0.1,184.4,184.34,0.98432314]
[1760763926890,0.1,184.4,184.35,0.7]
[1760763927085,0.1,184.4,184.37,0.28432314]
[1760763927480,0.1,184.4,184.38,0.7]
[1760763927685,0.1,184.4,184.36,41.86459535]
[1760763927889,0.1,184.4,184.37,0.7]
[1760763928803,0.71,184.39,184.36,5.4241701]
[1760763929103,0.71,184.38,184.36,5.4241701]
[1760763929696,0.81,184.4,184.36,5.4241701]
[1760763929907,0.67735992,184.54,184.39,22.88]
[1760763930207,0.71,184.47,184.4,0.98432314]
[1760763930388,0.71,184.47,184.41,0.7]
[1760763931099,0.71,184.47,184.42,16.30390478]
[1760763931290,0.71,184.47,184.43,0.7]
[1760763932102,0.71,184.47,184.43,6.12202513]
[1760763932404,2.99952962,184.46,184.38,0.7]
[1760763932785,2.99952962,184.46,184.41,16.30390478]
[1760763932990,0.71,184.45,184.41,16.30390478]
[1760763933200,2.28952962,184.46,184.41,16.30390478]
[1760763933405,0.71,184.44,184.41,16.30390478]
[1760763934998,0.71,184.44,184.41,60.90390477]
[1760763935199,2.28952962,184.46,184.41,67.02659008]
[1760763935419,2.99952962,184.46,184.42,0.7]
[1760763935605,0.71,184.46,184.42,45.29999999]
[1760763937107,0.71,184.46,184.43,16.30656339]
[1760763937699,0.71,184.48,184.43,21.72862587]
[1760763938009,0.72,184.47,184.43,16.98656339]
[1760763938217,0.72,184.47,184.43,0.68]
[1760763938418,0.72,184.47,184.44,16.30567709]
[1760763939807,0.72,184.49,184.44,16.98567709]
[1760763940112,3.00952962,184.49,184.44,22.40744464]
[1760763940619,2.28952962,184.52,184.45,0.68]
[1760763940820,0.72,184.51,184.45,0.68]
[1760763941727,2.28952962,184.5,184.45,0.68]
[1760763942021,0.72,184.5,184.46,2.96952962]
[1760763943819,0.72,184.5,184.46,0.68]
[1760763944120,2.28952962,184.51,184.44,16.98301877]
[1760763944121,0.72,184.49,184.44,16.98301877]
[1760763944323,0.72,184.49,184.45,0.68]
[1760763945322,2.28952962,184.47,184.39,5.42326717]
[1760763945503,0.72,184.46,184.4,0.68]
[1760763945704,0.72,184.46,184.4,16.98656339]
[1760763946117,2.28952962,184.45,184.4,16.98656339]
[1760763946426,3.00952962,184.45,184.41,0.68]
[1760763946614,3.00952962,184.45,184.4,16.30656339]
[1760763946818,0.72,184.44,184.39,5.42326717]
[1760763947022,0.72,184.43,184.39,0.68]
[1760763947724,3.00952962,184.43,184.39,0.68]
[1760763947908,3.00952962,184.43,184.34,0.68]
[1760763947909,2.28952962,184.41,184.34,0.68]
[1760763948111,2.28952962,184.39,184.34,0.68]
[1760763948312,3.00952962,184.39,184.37,16.30656339]
[1760763948725,3.00952962,184.39,184.34,0.68]
[1760763948907,3.00952962,184.39,184.35,0.68]
[1760763949627,2.28952962,184.41,184.36,0.68]
[1760763949823,3.00952962,184.41,184.36,0.68]
[1760763950225,2.28952962,184.41,184.37,0.68]
[1760763950424,2.28952962,184.41,184.38,0.68]
[1760763950608,2.28952962,184.41,184.38,45.28]
[1760763952128,2.28952962,184.41,184.38,44.6]
[1760763952328,3.00952962,184.41,184.38,44.6]
[1760763952510,23.6,184.43,184.38,44.6]
[1760763952710,2.28952962,184.41,184.38,45.28]
[1760763953633,3.00952962,184.41,184.38,44.6]
[1760763955818,2.28952962,184.41,184.38,44.6]
[1760763956517,0.67758022,184.48,184.39,0.68]
[1760763956721,2.28952962,184.45,184.39,45.28]
[1760763957019,0.72,184.46,184.4,0.68]
[1760763957427,0.72,184.46,184.4,45.28]
[1760763958016,0.72,184.46,184.41,0.68]
[1760763958227,0.72,184.46,184.41,44.6]
[1760763958515,2.28952962,184.47,184.42,0.68]
[1760763958717,3.00952962,184.47,184.43,0.68]
[1760763959736,2.28952962,184.47,184.41,45.28]
[1760763959934,2.28952962,184.47,184.4,66.33043878]
[1760763960133,25.88952962,184.47,184.42,0.68]
[1760763960327,2.28952962,184.43,184.4,60.90656339]
[1760763960529,2.28952962,184.43,184.4,16.30656339]
[1760763960731,2.28952962,184.43,184.38,6.10348312]
[1760763960935,2.28952962,184.43,184.39,0.68]
[1760763961127,2.28952962,184.43,184.4,0.68]
[1760763961439,2.28952962,184.43,184.38,16.98922286]
[1760763961621,2.28952962,184.43,184.39,0.68]
[1760763961821,2.28952962,184.43,184.4,0.68]
[1760763962035,2.28952962,184.44,184.4,0.68]
[1760763962731,3.00952962,184.44,184.4,0.68]
[1760763962930,0.72,184.43,184.38,16.30922286]
[1760763963133,3.00952962,184.42,184.36,0.68]
[1760763963442,15.55018417,184.5,184.36,0.68]
[1760763963443,3.00952962,184.49,184.37,0.28432314]
[1760763963625,2.28952962,184.49,184.38,0.68]
[1760763964256,2.28952962,184.49,184.4,0.28432314]
[1760763964440,2.28952962,184.49,184.41,0.67]
[1760763965128,2.28952962,184.49,184.42,16.30390478]
[1760763965328,2.28952962,184.49,184.43,0.67]
[1760763965521,0.67,184.48,184.43,0.67]
[1760763965734,2.28952962,184.49,184.42,16.30390478]
[1760763965735,2.95952962,184.47,184.42,16.30390478]
[1760763965929,2.28952962,184.45,184.39,5.42328759]
[1760763966121,2.28952962,184.45,184.41,16.30656339]
[1760763966323,2.28952962,184.45,184.4,5.42299028]
[1760763966324,2.95952962,184.45,184.4,5.42299028]
[1760763966633,2.95952962,184.45,184.39,16.30744978]
[1760763966831,2.95952962,184.45,184.4,0.67]
[1760763967030,2.95952962,184.45,184.41,0.67]
[1760763967746,2.28952962,184.46,184.41,0.67]
[1760763967948,2.99952962,184.46,184.41,0.67]
[1760763968838,0.71,184.45,184.4,16.30744978]
[1760763969046,2.99952962,184.44,184.4,45.31]
[1760763974562,2.28952962,184.44,184.41,0.71]
[1760763976258,2.28952962,184.44,184.41,45.31]
[1760763976946,2.28952962,184.44,184.41,44.6]
[1760763977139,2.99952962,184.44,184.41,44.6]
[1760763977344,2.99952962,184.44,184.41,45.31]
[1760763977850,2.28952962,184.44,184.41,45.31]
[1760763978264,22.88,184.45,184.41,45.31]
[1760763978457,0.67739662,184.53,184.42,0.71]
[1760763978645,2.99952962,184.51,184.42,0.71]
[1760763979464,2.99952962,184.51,184.44,5.42181739]
[1760763979638,2.99952962,184.51,184.45,0.71]
[1760763980043,0.71,184.51,184.45,0.71]
[1760763980266,0.71,184.51,184.45,17.01301877]
[1760763980444,0.71,184.51,184.46,0.71]
[1760763981150,22.88,184.53,184.46,0.71]
[1760763981151,0.71,184.5,184.46,0.71]
[1760763981756,1.4608656,184.51,184.46,16.30301877]
[1760763981960,2.1708656,184.51,184.47,0.71]
[1760763982348,1.4608656,184.53,184.48,0.71]
[1760763982549,1.4608656,184.53,184.49,0.71]
[1760763982752,2.1708656,184.53,184.49,0.71]
[1760763982951,1.4608656,184.55,184.49,3.54721679]
[1760763983259,2.1708656,184.55,184.5,0.71]
[1760763983458,0.71,184.54,184.5,0.71]
[1760763985764,1.4608656,184.53,184.5,0.71]
[1760763987167,1.4608656,184.53,184.5,45.31]
[1760763993472,2.1708656,184.53,184.5,45.31]
[1760763993678,2.1708656,184.53,184.5,44.6]
[1760763993869,0.71,184.52,184.5,44.6]
[1760763994371,2.1708656,184.51,184.5,44.6]
[1760763994585,2.1708656,184.51,184.46,45.31]
[1760763994761,1.4608656,184.49,184.46,45.31]
[1760763995782,0.71,184.5,184.46,44.6]
[1760763996080,23.59,184.52,184.47,0.71]
[1760763996281,0.71,184.5,184.47,0.71]
[1760763996579,23.59,184.52,184.47,0.71]
[1760763996766,0.71,184.51,184.47,0.71]
[1760763997481,0.71,184.5,184.47,0.71]
[1760763997653,0.71,184.5,184.46,44.6]
[1760763997850,22.88,184.51,184.46,45.32]
[1760763998052,0.71,184.5,184.46,45.32]
[1760763998258,0.71,184.5,184.46,44.6]
[1760763998466,0.71,184.5,184.47,0.72]
[1760763998982,0.71,184.5,184.47,45.32]
[1760763999290,0.71,184.5,184.47,44.6]
[1760763999585,22.88,184.51,184.47,44.6]
[1760763999763,22.88,184.52,184.48,0.72]
[1760764000084,23.59,184.52,184.48,0.72]
[1760764000383,0.71,184.51,184.48,0.72]
[1760764001188,0.71,184.51,184.48,0.22]
[1760764001360,0.71,184.51,184.47,44.6]
[1760764001668,22.88,184.52,184.47,44.6]
[1760764001857,0.71,184.5,184.47,44.6]
[1760764003074,0.71,184.49,184.47,44.6]
[1760764007079,23.59,184.5,184.47,44.6]
[1760764011085,0.71,184.49,184.45,16.30390478]
[1760764011392,0.71,184.48,184.4,44.6]
[1760764011599,0.99432314,184.47,184.36,66.33287304]
[1760764011772,1.4608656,184.48,184.41,0.72]
[1760764011972,0.71,184.48,184.41,45.32]
[1760764012173,1.4608656,184.46,184.42,0.72]
[1760764012370,1.4608656,184.46,184.43,0.72]
[1760764013079,1.4608656,184.44,184.41,45.32]
[1760764013278,1.4608656,184.44,184.42,0.72]
[1760764013978,1.4608656,184.44,184.38,66.33073776]
[1760764014177,1.4608656,184.46,184.43,0.72]
[1760764014386,22.88,184.47,184.44,0.72]
[1760764014586,1.4608656,184.46,184.42,0.72]
[1760764014898,2.1708656,184.46,184.42,0.72]
[1760764016700,2.1708656,184.46,184.42,45.32]
[1760764018696,1.4608656,184.46,184.42,45.32]
[1760764018903,0.71,184.45,184.42,45.32]
[1760764019195,1.4608656,184.46,184.42,45.32]
[1760764019399,2.1708656,184.46,184.42,45.32]
[1760764020203,0.71,184.45,184.42,45.32]
[1760764020579,2.1708656,184.46,184.42,45.32]
[1760764021300,2.1708656,184.46,184.42,44.6]
[1760764021499,2.1708656,184.46,184.42,45.32]
[1760764023508,0.71,184.46,184.42,45.32]
[1760764023702,2.1708656,184.46,184.42,45.32]
[1760764025512,0.69,184.51,184.43,0.67]
[1760764025689,1.4608656,184.49,184.43,50.69202513]
[1760764025884,1.4608656,184.49,184.44,0.67]
[1760764026893,23.57,184.51,184.44,0.67]
[1760764026894,1.4608656,184.51,184.44,45.27]
[1760764027100,1.4608656,184.51,184.45,0.67]
[1760764027297,1.4608656,184.51,184.45,16.97213286]
[1760764027509,1.4608656,184.51,184.45,16.30213286]
[1760764027804,1.4608656,184.51,184.46,6.09122953]
[1760764028008,1.4608656,184.51,184.47,0.66]
[1760764029513,0.66,184.53,184.47,0.66]
[1760764029686,1.4608656,184.52,184.47,0.66]
[1760764031186,1.4608656,184.52,184.47,6.08084607]
[1760764031390,1.4608656,184.52,184.48,0.66]
[1760764031588,1.4608656,184.52,184.49,0.66]
[1760764032007,1.4608656,184.52,184.47,5.42084607]
[1760764032198,1.4608656,184.52,184.5,0.66]
[1760764032402,1.4608656,184.52,184.48,2.8333815]
[1760764032597,1.4608656,184.52,184.49,0.66]
[1760764033106,1.4608656,184.52,184.48,46.7733815]
[1760764033107,0.66,184.51,184.48,46.7733815]
[1760764033298,1.4608656,184.52,184.48,45.26]
[1760764033487,1.4608656,184.52,184.48,44.6]
[1760764033691,4.40589839,184.59,184.49,0.66]
[1760764033893,1.4608656,184.56,184.49,45.26]
[1760764034108,1.4608656,184.56,184.5,0.66]
[1760764034318,1.4608656,184.54,184.5,0.66]
[1760764034493,1.4608656,184.54,184.51,0.66]
[1760764035311,1.4608656,184.54,184.52,0.66]
[1760764035509,2.1208656,184.54,184.5,44.6]
[1760764035717,1.4608656,184.52,184.5,44.6]
[1760764035894,0.66,184.52,184.5,44.6]
[1760764036604,2.1208656,184.53,184.5,44.6]
[1760764037404,2.1208656,184.53,184.49,0.66]
[1760764037607,2.1208656,184.53,184.5,0.66]
[1760764040097,1.4608656,184.53,184.48,6.0805686]
[1760764040298,2.1208656,184.53,184.49,0.66]
[1760764041424,2.94218101,184.53,184.49,0.66]
[1760764041718,2.28218101,184.53,184.49,0.66]
[1760764041912,0.66,184.52,184.49,0.66]
[1760764042224,2.28218101,184.53,184.49,0.66]
[1760764042522,2.94218101,184.53,184.49,0.66]
[1760764042715,0.66,184.52,184.49,0.66]
[1760764043413,2.94218101,184.52,184.49,44.6]
[1760764044010,2.94218101,184.52,184.49,45.26]
[1760764045308,0.66,184.51,184.49,44.6]
[1760764045510,2.94218101,184.5,184.48,2.28218101]
[1760764045715,2.94218101,184.5,184.44,45.26]
[1760764046022,0.66,184.49,184.45,0.66]
[1760764046326,0.66,184.49,184.44,60.90390478]
[1760764046629,2.28218101,184.46,184.42,2.28218101]
[1760764046835,2.28218101,184.44,184.42,2.28218101]
[1760764047018,0.66,184.43,184.37,0.66]
[1760764047327,2.28218101,184.4,184.37,2.28218101]
[1760764047511,2.94218101,184.4,184.35,0.66]
[1760764047715,2.94218101,184.4,184.36,0.66]
[1760764048427,2.28218101,184.38,184.35,2.28218101]
[1760764048622,2.28218101,184.36,184.31,0.66]
[1760764048813,2.94218101,184.36,184.31,6.08460937]
[1760764049003,2.94218101,184.36,184.32,0.66]
[1760764049424,2.28218101,184.38,184.33,0.66]
[1760764049621,25.82218101,184.4,184.33,0.66]
[1760764050429,2.94218101,184.4,184.33,0.66]
[1760764050727,2.94218101,184.4,184.34,5.42475859]
[1760764051037,2.94218101,184.4,184.34,6.08475859]
[1760764052107,0.66,184.39,184.34,0.66]
[1760764052924,2.28218101,184.4,184.34,0.66]
[1760764053124,2.94218101,184.38,184.32,5.42528733]
[1760764053320,0.66,184.38,184.33,0.66]
[1760764053523,2.28218101,184.39,184.33,0.66]
[1760764054310,0.66,184.38,184.33,44.6]
[1760764054510,2.28218101,184.35,184.33,44.6]
[1760764054810,2.94218101,184.37,184.33,44.6]
[1760764055017,0.66,184.36,184.33,44.6]
[1760764056116,0.66,184.35,184.33,44.6]
[1760764058031,2.28218101,184.37,184.33,44.6]
[1760764058235,0.72,184.36,184.33,44.6]
[1760764058729,3.00218101,184.35,184.33,44.6]
[1760764059036,0.72,184.34,184.33,44.6]
[1760764060532,0.72,184.34,184.29,50.90616632]
[1760764060741,0.72,184.33,184.29,50.90616632]
[1760764061324,2.28218101,184.33,184.29,0.2]
[1760764061528,0.72,184.32,184.29,0.2]
[1760764064232,0.72,184.31,184.29,0.2]
[1760764065134,23.16432314,184.38,184.29,0.2]
[1760764065135,3.00218101,184.46,184.33,22.88]
[1760764065447,3.00218101,184.46,184.37,22.88]
[1760764065733,0.72,184.46,184.38,23.83235817]
[1760764065914,0.72,184.46,184.39,0.41]
[1760764066112,0.72,184.46,184.4,0.54229934]
[1760764066324,0.72,184.46,184.4,16.84886273]
[1760764066522,0.72,184.46,184.4,17.25886273]
[1760764066837,0.72,184.46,184.41,5.42269941]
[1760764067037,0.72,184.46,184.42,0.54224053]
[1760764067425,0.72,184.48,184.42,0.95224053]
[1760764067928,0.72,184.48,184.42,0.54224053]
[1760764068936,0.72,184.48,184.42,5.9643822]
[1760764069130,0.72,184.47,184.43,16.30656339]
[1760764069931,0.72,184.46,184.43,16.30656339]
[1760764070632,23.6,184.5,184.44,0.41]
[1760764070833,23.6,184.5,184.44,5.9639144]
[1760764071149,0.72,184.49,184.44,5.9639144]
[1760764071345,0.72,184.48,184.44,5.9639144]
[1760764074141,0.72,184.47,184.44,5.9639144]
[1760764074542,0.72,184.47,184.45,16.30567709]
[1760764076047,0.72,184.47,184.45,60.90567709]
[1760764076546,0.72,184.47,184.45,44.6]
[1760764076745,0.72,184.47,184.46,16.30567709]
[1760764078346,0.72,184.49,184.46,16.30567709]
[1760764078551,0.72,184.48,184.46,16.30567709]
[1760764081745,0.72,184.48,184.46,60.90567709]
[1760764082837,0.72,184.47,184.46,60.90567709]
[1760764083151,0.72,184.47,184.46,44.6]
[1760764083447,1.00432314,184.47,184.45,16.30567709]
[1760764083649,26.55725176,184.46,184.38,6.3756871]
[1760764083844,2.28218101,184.44,184.37,5.42384696]
[1760764084047,0.67,184.43,184.37,5.42384696]
[1760764084238,2.95725176,184.44,184.38,16.30922286]
[1760764084438,0.67,184.42,184.38,16.30922286]
[1760764084637,0.67,184.41,184.34,0.95247585]
[1760764084844,0.67,184.4,184.35,16.30922286]
[1760764085238,1.34507075,184.42,184.36,0.41]
[1760764085433,0.67,184.42,184.37,0.54238759]
[1760764085751,0.67,184.42,184.37,0.95238759]
[1760764086350,0.67,184.41,184.37,6.37606479]
[1760764088840,0.67,184.41,184.37,19.93796128]
[1760764090138,0.66,184.4,184.37,13.56189649]
[1760764090338,0.66,184.39,184.33,0.54250528]
[1760764090663,2.94218101,184.39,184.34,2.28218101]
[1760764090960,22.88,184.42,184.35,0.95244643]
[1760764091255,0.66,184.43,184.36,0.41]
[1760764091563,0.66,184.43,184.37,0.54238759]
[1760764091933,0.66,184.43,184.37,5.96607604]
[1760764092352,0.66,184.43,184.38,0.41]
[1760764092557,0.66,184.43,184.39,0.54232875]
[1760764093249,0.66,184.42,184.38,5.96593274]
[1760764093756,0.66,184.42,184.38,6.37593274]
[1760764094650,26.1215749,184.45,184.38,6.37593274]
[1760764094851,0.66,184.44,184.38,6.37593274]
[1760764095149,0.66,184.43,184.38,5.96593274]
[1760764095351,0.66,184.42,184.38,5.96593274]
[1760764096554,0.66,184.42,184.38,50.56593274]
[1760764097144,23.54,184.42,184.38,50.56593274]
[1760764097757,23.54,184.42,184.38,45.14235817]
[1760764098055,0.66,184.42,184.38,45.14235817]
[1760764099759,23.16432314,184.45,184.39,0.41]
[1760764099939,0.66,184.44,184.39,0.41]
[1760764100141,0.66,184.43,184.38,50.56593056]
[1760764100364,0.66,184.42,184.38,50.56593056]
[1760764101353,0.66,184.42,184.38,50.97593056]
[1760764102961,0.66,184.42,184.38,50.56593056]
[1760764103167,0.66,184.42,184.38,45.14235817]
[1760764104573,0.66,184.42,184.38,45.55235817]
[1760764105456,1.46213907,184.47,184.39,0.41]
[1760764105654,2.12213907,184.45,184.39,44.6]
[1760764105878,0.66,184.44,184.39,44.6]
[1760764106171,0.66,184.43,184.39,44.6]
[1760764107472,0.66,184.42,184.39,44.6]
[1760764107782,2.12213907,184.41,184.39,44.6]
[1760764107957,0.66,184.4,184.39,44.6]
[1760764111580,0.66,184.4,184.35,2.1751543]
[1760764111875,0.66,184.39,184.35,46.7751543]
[1760764112076,0.66,184.39,184.35,45.01]
[1760764115167,0.66,184.39,184.35,44.6]
[1760764115168,0.66,184.38,184.35,44.6]
[1760764115482,2.12213907,184.37,184.34,44.6]
[1760764115683,0.66,184.36,184.34,44.6]
[1760764115871,0.66,184.36,184.32,45.01]
[1760764116598,6.88615848,184.37,184.3,16.85980008]
[1760764116765,1.46213907,184.33,184.29,0.2]
[1760764116959,0.66,184.32,184.29,0.2]
[1760764118189,1.33507075,184.32,184.29,0.2]
[1760764118595,0.66,184.32,184.29,0.2]
[1760764118977,2.13213907,184.31,184.29,0.2]
[1760764119293,0.67,184.3,184.29,0.2]
[1760764120994,1.46213907,184.31,184.29,0.2]
[1760764121394,2.13213907,184.31,184.29,0.2]
[1760764122201,22.88,184.33,184.29,0.2]
[1760764122202,25.01213907,184.33,184.29,0.2]
[1760764122415,25.01213907,184.33,184.3,0.41]
[1760764122416,22.88,184.33,184.3,0.41]
[1760764122577,1.46213907,184.35,184.31,0.41]
[1760764122779,2.13213907,184.35,184.31,0.41]
[1760764123201,2.13213907,184.35,184.31,45.01]
[1760764124081,25.01213907,184.37,184.32,0.41]
[1760764124275,25.01213907,184.37,184.32,45.01]
[1760764124484,25.01213907,184.37,184.33,0.41]
[1760764124899,2.13213907,184.37,184.33,45.01]
[1760764125093,1.46213907,184.39,184.34,0.41]
[1760764125275,25.01213907,184.41,184.35,0.41]
[1760764125584,0.67507075,184.4,184.35,44.6]
[1760764125794,0.67,184.39,184.35,44.6]
[1760764127515,0.67,184.39,184.35,45.01]
[1760764128112,25.01720982,184.41,184.35,45.01]
[1760764128409,0.67,184.4,184.35,45.01]
[1760764131108,0.67,184.39,184.35,44.6]
[1760764131408,0.67,184.38,184.35,44.6]
[1760764131586,2.13213907,184.37,184.35,44.6]
[1760764131785,0.67,184.36,184.31,45.01]
[1760764132319,0.67,184.36,184.32,0.41]
[1760764133113,1.46213907,184.39,184.33,0.95250528]
[1760764133291,2.13213907,184.39,184.33,0.95250528]
[1760764133496,2.13213907,184.39,184.34,0.41]
[1760764133711,2.13213907,184.39,184.34,45.01]
[1760764133916,2.13213907,184.39,184.35,0.41]
[1760764134107,2.13213907,184.39,184.35,45.01]
[1760764134801,1.46213907,184.39,184.36,0.41]
[1760764134990,1.46213907,184.39,184.36,0.95241701]
[1760764135598,1.46213907,184.39,184.36,0.41]
[1760764136302,2.13213907,184.39,184.35,45.14244643]
[1760764136503,1.46213907,184.37,184.35,45.14244643]
[1760764136703,1.46213907,184.37,184.35,44.6]
[1760764137221,2.13213907,184.37,184.35,44.6]
[1760764138088,2.13213907,184.37,184.32,50.97782777]
[1760764139408,1.46213907,184.38,184.33,0.41]
[1760764139921,0.67,184.37,184.33,0.41]
[1760764142297,0.67,184.39,184.32,50.56782777]
[1760764142501,0.67,184.38,184.33,0.41]
[1760764142700,0.67,184.37,184.33,0.41]
[1760764143924,0.67,184.37,184.33,45.01]
[1760764146722,0.67,184.37,184.33,44.6]
[1760764147207,0.67,184.37,184.33,45.01]
[1760764149222,1.46213907,184.39,184.34,0.95247585]
[1760764149425,1.46213907,184.39,184.35,0.41]
[1760764149722,1.46213907,184.41,184.36,0.54241701]
[1760764149903,1.46213907,184.41,184.37,0.41]
[1760764150098,2.14213907,184.41,184.37,0.41]
[1760764151806,2.14213907,184.41,184.36,50.97651517]
[1760764155432,1.46213907,184.41,184.36,50.97651517]
[1760764155730,22.88,184.43,184.33,44.6]
[1760764155731,1.46213907,184.39,184.33,44.6]